bitfinex/quotes_BTCUSD_20241117
["timestamp","ask_amount","ask_price","bid_price","bid_amount"]
[1731865263848,0.21960155,90465.0,90464.0,0.0008554]
[1731865271038,0.1309,90477.0,90464.0,0.0008554]
[1731865271264,0.110534,90470.0,90464.0,0.0008554]
[1731865271745,0.16552546,90474.0,90464.0,0.0008554]
[1731865271972,0.10906255,90473.0,90464.0,0.0008554]
[1731865272182,0.110539,90465.0,90464.0,0.0008554]
[1731865272393,0.21960155,90465.0,90464.0,0.0008554]
[1731865275012,0.1359,90477.0,90464.0,0.0008554]
[1731865275240,0.110539,90465.0,90464.0,0.0008554]
[1731865276341,0.110533,90470.0,90464.0,0.0008554]
[1731865276570,0.10906255,90469.0,90464.0,0.0008554]
[1731865277052,0.110536,90468.0,90464.0,0.0008554]
[1731865277920,0.21959855,90469.0,90464.0,0.0008554]
[1731865278201,0.21959755,90469.0,90464.0,0.0008554]
[1731865278425,0.110536,90468.0,90464.0,0.0008554]
[1731865279937,0.10906255,90469.0,90464.0,0.0008554]
[1731865280146,0.110536,90468.0,90464.0,0.0008554]
[1731865280354,0.16552546,90472.0,90464.0,0.0008554]
[1731865280568,0.10906255,90473.0,90464.0,0.0008554]
[1731865280799,0.10906255,90473.0,90469.0,0.110534]
[1731865281002,0.21959255,90473.0,90464.0,0.0008554]
[1731865281231,0.110531,90472.0,90466.0,0.110537]
[1731865281679,0.110531,90472.0,90464.0,0.0008554]
[1731865281680,0.10906255,90473.0,90465.0,0.221079]
[1731865281893,0.10906255,90473.0,90467.0,0.110536]
[1731865282107,0.21959255,90473.0,90467.0,0.110536]
[1731865282328,0.110528,90475.0,90468.0,0.110536]
[1731865282535,0.110529,90474.0,90468.0,0.110536]
[1731865282739,0.10906255,90475.0,90465.0,0.221079]
[1731865282942,0.10906255,90475.0,90468.0,0.110535]
[1731865283160,0.221057,90474.0,90466.0,0.110538]
[1731865283369,0.10906255,90475.0,90465.0,0.110539]
[1731865283370,0.110532,90471.0,90465.0,0.110539]
[1731865284015,0.110532,90471.0,90466.0,0.110538]
[1731865284246,0.221062,90472.0,90464.0,0.0008554]
[1731865284469,0.110539,90465.0,90464.0,0.0008554]
[1731865284683,0.221072,90468.0,90464.0,0.0008554]
[1731865284890,0.110539,90466.0,90464.0,0.0008554]
[1731865285548,0.110536,90469.0,90464.0,0.0008554]
[1731865285818,0.21959855,90469.0,90464.0,0.0008554]
[1731865286253,0.10906255,90469.0,90464.0,0.0008554]
[1731865286481,0.110538,90467.0,90464.0,0.0008554]
[1731865286891,0.10906255,90469.0,90464.0,0.0008554]
[1731865287117,0.10906255,90469.0,90464.0,0.1113954]
[1731865287324,0.10906255,90469.0,90464.0,0.0008554]
[1731865288033,0.110531,90473.0,90467.0,0.110536]
[1731865288034,0.11053,90473.0,90467.0,0.110536]
[1731865288257,0.11053,90473.0,90465.0,0.221079]
[1731865288494,0.16552546,90475.0,90467.0,0.110536]
[1731865288495,0.110528,90474.0,90467.0,0.110536]
[1731865288709,0.10906255,90474.0,90467.0,0.110536]
[1731865288911,0.10906255,90474.0,90464.0,0.0008554]
[1731865288912,0.110532,90472.0,90466.0,0.110538]
[1731865291282,0.110532,90472.0,90464.0,0.0008554]
[1731865291283,0.110536,90468.0,90464.0,0.0008554]
[1731865291494,0.221065,90471.0,90464.0,0.0008554]
[1731865291711,0.110537,90468.0,90464.0,0.0008554]
[1731865292366,0.110535,90469.0,90464.0,0.0008554]
[1731865292801,0.110538,90467.0,90464.0,0.0008554]
[1731865293032,0.110539,90466.0,90464.0,0.0008554]
[1731865293234,0.221073,90468.0,90464.0,0.0008554]
[1731865293235,0.110537,90468.0,90464.0,0.0008554]
[1731865293740,0.110538,90467.0,90464.0,0.0008554]
[1731865294360,0.110533,90471.0,90464.0,0.1113954]
[1731865294800,0.22106,90473.0,90464.0,0.1113954]
[1731865295023,0.110533,90470.0,90464.0,0.0008554]
[1731865295441,0.10906255,90474.0,90464.0,0.0008554]
[1731865295442,0.221062,90472.0,90464.0,0.0008554]
[1731865295647,0.110534,90470.0,90464.0,0.0008554]
[1731865296315,0.110532,90472.0,90466.0,0.110538]
[1731865296518,0.110532,90472.0,90464.0,0.0008554]
[1731865296519,0.110532,90472.0,90464.0,0.1113954]
[1731865296726,0.110534,90470.0,90464.0,0.0008554]
[1731865296927,0.110534,90470.0,90464.0,0.1113954]
[1731865297066,0.10906255,90474.0,90464.0,0.1113954]
[1731865297067,0.110532,90471.0,90464.0,0.1113954]
[1731865297267,0.110531,90473.0,90465.0,0.110539]
[1731865297475,0.110532,90472.0,90465.0,0.110539]
[1731865297909,0.10906255,90474.0,90464.0,0.0008554]
[1731865298495,0.110532,90471.0,90465.0,0.110539]
[1731865298748,0.21959155,90474.0,90467.0,0.110537]
[1731865298956,0.21959155,90474.0,90464.0,0.1113954]
[1731865298957,0.110531,90472.0,90464.0,0.1113954]
[1731865299162,0.110531,90472.0,90465.0,0.110539]
[1731865301064,0.110531,90472.0,90466.0,0.110538]
[1731865303156,0.221022,90489.0,90471.0,0.11371852]
[1731865303349,0.36295363,90502.0,90466.0,0.00221055]
[1731865303350,0.16552546,90476.0,90466.0,0.00221055]
[1731865303577,0.16552546,90476.0,90466.0,0.110538]
[1731865303812,0.16552546,90476.0,90464.0,0.0008554]
[1731865304012,0.110529,90474.0,90465.0,0.221079]
[1731865304427,0.110529,90474.0,90468.0,0.110536]
[1731865304841,0.110527,90475.0,90468.0,0.110536]
[1731865306215,0.0811,90477.0,90468.0,0.33479052]
[1731865306422,0.0811,90477.0,90468.0,0.11371852]
[1731865306769,0.0811,90477.0,90473.0,0.110529]
[1731865307079,0.16552546,90478.0,90476.0,0.223053]
[1731865307284,0.16552546,90478.0,90477.0,0.22424352]
[1731865307652,0.16552546,90492.0,90477.0,0.11371852]
[1731865307858,0.16552546,90480.0,90479.0,0.110522]
[1731865308059,0.221029,90486.0,90477.0,0.11371852]
[1731865308404,0.192617,90484.0,90477.0,0.11371852]
[1731865308538,0.10906255,90483.0,90477.0,0.11371852]
[1731865308992,0.10906255,90483.0,90479.0,0.110522]
[1731865309379,0.10906255,90483.0,90481.0,0.110519]
[1731865309575,0.10906255,90483.0,90479.0,0.110522]
[1731865309788,0.10906255,90483.0,90480.0,0.110521]
[1731865310013,0.10906255,90483.0,90477.0,0.11371852]
[1731865310208,0.10906255,90483.0,90482.0,0.110519]
[1731865310327,0.0821,90484.0,90483.0,0.110517]
[1731865315540,0.0821,90484.0,90481.0,0.110519]
[1731865315755,0.0821,90484.0,90483.0,0.110517]
[1731865317129,0.0838126,90484.0,90483.0,0.110517]
[1731865319387,0.0017126,90484.0,90483.0,0.110517]
[1731865321809,0.0017126,90484.0,90481.0,0.11052]
[1731865322036,0.0017126,90484.0,90480.0,0.221043]
[1731865322485,0.0017126,90484.0,90483.0,0.110517]
[1731865322703,0.0017126,90484.0,90481.0,0.110519]
[1731865322917,0.0017126,90484.0,90478.0,0.331572]
[1731865323142,0.0017126,90484.0,90478.0,0.221048]
[1731865323356,0.0017126,90484.0,90483.0,0.110517]
[1731865325188,0.0017126,90484.0,90483.0,0.11472713]
[1731865325352,0.0017126,90484.0,90483.0,0.31891486]
[1731865325529,0.0017126,90484.0,90483.0,0.36629859]
[1731865325727,0.0017126,90484.0,90483.0,0.73209355]
[1731865325931,0.0017126,90484.0,90483.0,0.43629859]
[1731865326227,0.0017126,90484.0,90483.0,0.287517]
[1731865326962,0.0017126,90484.0,90483.0,0.08024376]
[1731865327078,0.0017126,90484.0,90483.0,0.075]
[1731865327283,0.0017126,90484.0,90483.0,0.185517]
[1731865327493,0.0017126,90484.0,90483.0,0.20723916]
[1731865327941,0.0017126,90484.0,90483.0,0.24376985]
[1731865330420,0.0017126,90484.0,90483.0,0.27176985]
[1731865330632,0.0017126,90484.0,90483.0,0.35086985]
[1731865331072,0.0017126,90484.0,90483.0,0.39696985]
[1731865332159,0.0017126,90484.0,90483.0,0.5060324]
[1731865334906,0.0017126,90484.0,90483.0,0.30114769]
[1731865335158,0.0017126,90484.0,90483.0,0.22204769]
[1731865338753,0.0017126,90484.0,90483.0,0.22425769]
[1731865338981,0.0017126,90484.0,90483.0,0.15425769]
[1731865339217,0.0017122,90490.0,90489.0,0.22422852]
[1731865339432,0.0017122,90490.0,90489.0,0.22643843]
[1731865339589,0.0017122,90490.0,90489.0,0.25443843]
[1731865339791,0.0017122,90490.0,90489.0,0.36629107]
[1731865340014,0.16552546,90518.0,90511.0,0.0818]
[1731865340221,0.16552546,90518.0,90511.0,0.115483]
[1731865340662,0.16552546,90518.0,90511.0,0.110483]
[1731865341026,0.16552546,90518.0,90508.0,0.220973]
[1731865341027,0.0824,90515.0,90508.0,0.220973]
[1731865341381,0.0017138,90525.0,90511.0,0.25220152]
[1731865341602,0.0017138,90525.0,90511.0,0.36126407]
[1731865341845,0.0017138,90525.0,90511.0,0.36626407]
[1731865342263,0.0017138,90525.0,90511.0,0.46626407]
[1731865342924,0.0017138,90525.0,90511.0,0.35254555]
[1731865343146,0.0017138,90525.0,90511.0,0.46626407]
[1731865345855,0.0017138,90525.0,90524.0,0.033]
[1731865346032,0.0017138,90525.0,90524.0,0.46624807]
[1731865347973,0.0017138,90525.0,90524.0,0.57996659]
[1731865348208,0.16552546,90539.0,90538.0,0.22416852]
[1731865348621,0.0824,90551.0,90538.0,0.22416852]
[1731865348622,0.0824,90551.0,90549.0,0.110437]
[1731865348826,0.0459,90557.0,90549.0,0.22415552]
[1731865349269,0.0459,90557.0,90554.0,0.110431]
[1731865349696,0.0824,90560.0,90554.0,0.110431]
[1731865351216,0.16552546,90559.0,90554.0,0.110431]
[1731865351642,0.16552546,90559.0,90554.0,0.14698019]
[1731865352342,0.16552546,90559.0,90554.0,0.110431]
[1731865352584,0.0476128,90555.0,90517.0,0.0452]
[1731865352787,0.110433,90552.0,90545.0,0.110441]
[1731865353009,0.16552546,90549.0,90539.0,0.220898]
[1731865353247,0.16552546,90549.0,90531.0,0.005]
[1731865353248,0.19146255,90554.0,90531.0,0.225916]
[1731865353457,0.16552546,90549.0,90533.0,0.220913]
[1731865353662,0.27596246,90549.0,90540.0,0.110448]
[1731865353869,0.16552546,90549.0,90529.0,0.11371852]
[1731865354071,0.0824,90548.0,90526.0,0.1]
[1731865354310,0.110442,90545.0,90536.0,0.110453]
[1731865354509,0.005,90541.0,90528.0,0.11371852]
[1731865354713,0.11045,90539.0,90526.0,0.220929]
[1731865354929,0.11045,90539.0,90528.0,0.110462]
[1731865355140,0.11045,90539.0,90520.0,0.1495266]
[1731865355141,0.005,90535.0,90520.0,0.03580808]
[1731865355342,0.110459,90531.0,90521.0,0.11047]
[1731865355566,0.115457,90533.0,90513.0,0.11371852]
[1731865355788,0.115457,90533.0,90524.0,0.110467]
[1731865356007,0.005,90533.0,90526.0,0.110465]
[1731865356644,0.005,90533.0,90521.0,0.220942]
[1731865356865,0.005,90533.0,90524.0,0.110466]
[1731865357086,0.005,90533.0,90525.0,0.110466]
[1731865357512,0.005,90533.0,90526.0,0.110465]
[1731865358528,0.005,90533.0,90523.0,0.220938]
[1731865358726,0.005,90533.0,90530.0,0.11046]
[1731865358970,0.005,90537.0,90519.0,0.11371852]
[1731865358971,0.005,90537.0,90531.0,0.110459]
[1731865359481,0.005,90537.0,90527.0,0.220927]
[1731865359715,0.19146255,90539.0,90538.0,0.11045]
[1731865359716,0.0824,90539.0,90538.0,0.11045]
[1731865360848,0.005,90537.0,90533.0,0.11371852]
[1731865361078,0.005,90537.0,90530.0,0.220921]
[1731865361296,0.005,90537.0,90534.0,0.110455]
[1731865362053,0.005,90537.0,90535.0,0.110454]
[1731865362516,0.005,90537.0,90536.0,0.110453]
[1731865362750,0.0824,90539.0,90538.0,0.11045]
[1731865362984,0.005,90547.0,90534.0,0.11371852]
[1731865363205,0.005,90547.0,90542.0,0.110445]
[1731865365493,0.005,90547.0,90543.0,0.110444]
[1731865365755,0.0798,90548.0,90547.0,0.110439]
[1731865365995,0.220838,90564.0,90554.0,0.110431]
[1731865365996,0.048,90562.0,90554.0,0.110431]
[1731865366225,0.048,90562.0,90554.0,0.22414952]
[1731865368043,0.110423,90561.0,90549.0,0.220872]
[1731865368274,0.110423,90561.0,90546.0,0.220881]
[1731865368275,0.053,90562.0,90551.0,0.110434]
[1731865368509,0.053,90562.0,90530.0,0.0763]
[1731865368510,0.220877,90548.0,90525.0,0.11543012]
[1731865368738,0.005,90549.0,90525.0,0.11543012]
[1731865368739,0.110445,90543.0,90528.0,0.220924]
[1731865368966,0.110445,90543.0,90525.0,0.33636212]
[1731865369202,0.005,90549.0,90525.0,0.33636212]
[1731865369203,0.110449,90539.0,90528.0,0.110463]
[1731865369456,0.0848,90542.0,90525.0,0.03804814]
[1731865369752,0.220896,90540.0,90525.0,0.03804814]
[1731865369971,0.110451,90538.0,90526.0,0.220931]
[1731865370204,0.110451,90538.0,90527.0,0.220928]
[1731865370442,0.38642146,90540.0,90525.0,0.03804814]
[1731865370663,0.110455,90535.0,90525.0,0.1121766]
[1731865370882,0.005,90533.0,90525.0,0.0017116]
[1731865371086,0.0798,90530.0,90525.0,0.0017116]
[1731865371293,0.0798,90530.0,90525.0,0.1121776]
[1731865371965,0.0798,90530.0,90526.0,0.110465]
[1731865372237,0.0798,90530.0,90525.0,0.0017116]
[1731865372650,0.115465,90526.0,90525.0,0.0017116]
[1731865372890,0.168465,90526.0,90525.0,0.0017116]
[1731865375866,0.168465,90526.0,90525.0,0.00147131]
[1731865378619,0.058,90526.0,90525.0,0.00147131]
[1731865378836,0.168465,90526.0,90525.0,0.00147131]
[1731865379280,0.048,90526.0,90525.0,0.00147131]
[1731865379518,0.0798,90530.0,90525.0,0.00147131]
[1731865379749,0.0798,90530.0,90525.0,0.11193631]
[1731865379750,0.005,90529.0,90525.0,0.11193631]
[1731865379995,0.005,90529.0,90525.0,0.00147131]
[1731865380214,0.005,90529.0,90525.0,0.11193731]
[1731865380448,0.0798,90530.0,90525.0,0.00147131]
[1731865380659,0.005,90536.0,90529.0,0.11371852]
[1731865380905,0.005,90536.0,90525.0,0.00147131]
[1731865380906,0.115454,90536.0,90525.0,0.00147131]
[1731865381114,0.115454,90536.0,90528.0,0.110463]
[1731865381337,0.115454,90536.0,90525.0,0.00147131]
[1731865381338,0.005,90536.0,90527.0,0.220926]
[1731865381560,0.005,90536.0,90530.0,0.11046]
[1731865381781,0.005,90536.0,90527.0,0.220926]
[1731865381999,0.005,90536.0,90533.0,0.110456]
[1731865382414,0.005,90536.0,90531.0,0.110459]
[1731865382853,0.005,90536.0,90532.0,0.110457]
[1731865384110,0.005,90536.0,90525.0,0.00147131]
[1731865384313,0.220909,90535.0,90525.0,0.00147131]
[1731865384580,0.110454,90535.0,90525.0,0.00147131]
[1731865384809,0.005,90536.0,90528.0,0.110462]
[1731865384810,0.115453,90536.0,90528.0,0.110462]
[1731865385085,0.005,90536.0,90525.0,0.00147131]
[1731865385288,0.005,90536.0,90533.0,0.110456]
[1731865385952,0.005,90536.0,90534.0,0.110454]
[1731865386179,0.005,90536.0,90526.0,0.220929]
[1731865386618,0.005,90536.0,90533.0,0.110456]
[1731865388118,0.005,90536.0,90530.0,0.110459]
[1731865388358,0.005,90536.0,90525.0,0.00147131]
[1731865388359,0.005,90531.0,90525.0,0.00147131]
[1731865388586,0.0462,90535.0,90525.0,0.00147131]
[1731865388587,0.110463,90528.0,90525.0,0.00147131]
[1731865388794,0.005,90529.0,90525.0,0.00147131]
[1731865389012,0.16552546,90528.0,90525.0,0.00147131]
[1731865389220,0.005,90529.0,90525.0,0.00147131]
[1731865389221,0.1386,90526.0,90525.0,0.00147131]
[1731865389642,0.249065,90526.0,90525.0,0.00147131]
[1731865390960,0.1386,90526.0,90525.0,0.00147131]
[1731865391431,0.1336,90526.0,90525.0,0.00147131]
[1731865392041,0.1386,90526.0,90525.0,0.00147131]
[1731865393990,0.1336,90526.0,90525.0,0.00147131]
[1731865394666,0.1386,90526.0,90525.0,0.00147131]
[1731865395320,0.1336,90526.0,90525.0,0.00147131]
[1731865396325,0.110457,90533.0,90525.0,0.00147131]
[1731865396326,0.0825,90533.0,90532.0,0.110458]
[1731865396643,0.0506558,90536.0,90535.0,0.110454]
[1731865396644,0.0008558,90536.0,90535.0,0.110454]
[1731865400974,0.0825,90540.0,90539.0,0.110449]
[1731865406423,0.0825,90540.0,90537.0,0.220904]
[1731865406627,0.0825,90540.0,90537.0,0.110451]
[1731865407893,0.0825,90540.0,90536.0,0.0001442]
[1731865408099,0.0825,90540.0,90539.0,0.110449]
[1731865408308,0.0825,90540.0,90538.0,0.11045]
[1731865408942,0.005,90537.0,90536.0,0.0001442]
[1731865409146,0.35901455,90537.0,90536.0,0.0001442]
[1731865412336,0.35901455,90537.0,90525.0,0.00147131]
[1731865412337,0.110456,90534.0,90525.0,0.00086273]
[1731865412546,0.110456,90534.0,90524.0,0.11026819]
[1731865412547,0.005,90529.0,90524.0,0.11026819]
[1731865412763,0.005,90529.0,90524.0,0.10995115]
[1731865413206,0.005,90529.0,90523.0,0.110468]
[1731865414054,0.005,90529.0,90525.0,0.0017122]
[1731865417130,0.005,90532.0,90526.0,0.220931]
[1731865417355,0.005,90529.0,90526.0,0.220931]
[1731865417584,0.005,90532.0,90529.0,0.110461]
[1731865419419,0.005,90533.0,90529.0,0.110461]
[1731865419638,0.005,90534.0,90525.0,0.0017122]
[1731865419864,0.005,90535.0,90530.0,0.110459]
[1731865420089,0.01,90533.0,90530.0,0.110459]
[1731865420329,0.10906255,90532.0,90525.0,0.0017122]
[1731865420550,0.203365,90526.0,90525.0,0.0017122]
[1731865420835,0.20196255,90526.0,90525.0,0.0017122]
[1731865421054,0.31242755,90526.0,90525.0,0.0017122]
[1731865421742,0.0879,90526.0,90525.0,0.0017122]
[1731865422669,0.0929,90526.0,90525.0,0.0017122]
[1731865423089,0.203365,90526.0,90525.0,0.0017122]
[1731865423602,0.0929,90526.0,90525.0,0.0017122]
[1731865423830,0.0879,90526.0,90525.0,0.0017122]
[1731865424056,0.0929,90526.0,90525.0,0.0017122]
[1731865424526,0.0879,90526.0,90525.0,0.0017122]
[1731865425401,0.005,90528.0,90525.0,0.0017122]
[1731865425858,0.0799,90529.0,90528.0,0.110463]
[1731865426770,0.0807561,90529.0,90528.0,0.110463]
[1731865426992,0.0008561,90529.0,90528.0,0.110463]
[1731865429490,0.0008561,90529.0,90528.0,0.14678703]
[1731865430905,0.0008561,90529.0,90528.0,0.16901875]
[1731865431065,0.0008561,90529.0,90528.0,0.2681066]
[1731865431288,0.0008561,90529.0,90528.0,0.16901875]
[1731865432834,0.0008561,90529.0,90528.0,0.26804094]
[1731865433260,0.0008561,90529.0,90528.0,0.16901875]
[1731865433495,0.0008561,90529.0,90528.0,0.26804094]
[1731865436166,0.0008561,90529.0,90528.0,0.16901875]
[1731865436384,0.0008561,90529.0,90528.0,0.3480373]
[1731865436875,0.0008561,90529.0,90528.0,0.34803907]
[1731865437339,0.0008561,90529.0,90528.0,0.24901875]
[1731865437603,0.0008561,90529.0,90528.0,0.33584958]
[1731865438336,0.0008561,90529.0,90528.0,0.43584958]
[1731865438555,0.0008561,90529.0,90528.0,0.80137671]
[1731865438772,0.0008561,90529.0,90528.0,0.82348995]
[1731865439005,0.0008561,90529.0,90528.0,1.25445928]
[1731865439216,0.0008561,90529.0,90528.0,1.14074076]
[1731865440746,0.0008561,90529.0,90528.0,0.89318995]
[1731865440979,0.0008561,90529.0,90528.0,1.14060262]
[1731865441479,0.0008561,90529.0,90528.0,0.89310338]
[1731865441713,0.0008561,90529.0,90528.0,1.14060091]
[1731865442163,0.0008561,90529.0,90528.0,1.14058838]
[1731865442381,0.0008561,90529.0,90528.0,1.14058864]
[1731865442615,0.0008561,90529.0,90528.0,0.84640338]
[1731865442832,0.0008561,90529.0,90528.0,0.71434083]
[1731865443047,0.0008561,90529.0,90528.0,0.34890027]
[1731865443251,0.0008561,90529.0,90528.0,0.44791191]
[1731865443479,0.22088,90547.0,90528.0,0.44791191]
[1731865443480,0.005,90562.0,90529.0,0.1235]
[1731865443774,0.0017126,90581.0,90529.0,0.1235]
[1731865443775,0.03,90564.0,90554.0,0.34764952]
[1731865444168,0.03,90564.0,90554.0,0.32311993]
[1731865444402,0.03,90564.0,90554.0,0.11371852]
[1731865444631,0.220841,90563.0,90554.0,0.11371852]
[1731865444844,0.03,90564.0,90554.0,0.22414952]
[1731865445317,0.140419,90564.0,90554.0,0.22414952]
[1731865445529,0.220843,90562.0,90548.0,0.09889226]
[1731865445764,0.220843,90562.0,90551.0,0.110434]
[1731865445765,0.110426,90558.0,90551.0,0.110434]
[1731865446052,0.110424,90560.0,90552.0,0.110433]
[1731865446223,0.01,90554.0,90541.0,0.09889226]
[1731865446483,0.110435,90551.0,90544.0,0.110443]
[1731865446708,0.344665,90553.0,90544.0,0.110443]
[1731865447352,0.110435,90551.0,90544.0,0.110443]
[1731865447782,0.005,90549.0,90539.0,0.03628622]
[1731865447999,0.01,90547.0,90539.0,0.03628622]
[1731865448250,0.110448,90540.0,90539.0,0.03628622]
[1731865448480,0.220894,90541.0,90530.0,0.110459]
[1731865448726,0.11045,90539.0,90532.0,0.110457]
[1731865448997,0.220899,90539.0,90528.0,0.11663081]
[1731865449219,0.110459,90531.0,90528.0,0.11663081]
[1731865449443,0.110459,90531.0,90528.0,0.08]
[1731865449672,0.005,90536.0,90528.0,0.08]
[1731865449901,0.005,90536.0,90525.0,0.0017122]
[1731865449902,0.005,90536.0,90530.0,0.11046]
[1731865450350,0.110455,90535.0,90530.0,0.11046]
[1731865450842,0.005,90536.0,90528.0,0.220926]
[1731865451077,0.110455,90535.0,90529.0,0.11046]
[1731865451284,0.110455,90534.0,90529.0,0.11046]
[1731865451545,0.115454,90536.0,90530.0,0.110459]
[1731865451758,0.005,90536.0,90532.0,0.110457]
[1731865451961,0.115453,90536.0,90531.0,0.110459]
[1731865452194,0.110456,90534.0,90529.0,0.110461]
[1731865453340,0.220909,90535.0,90526.0,0.11371852]
[1731865453554,0.220909,90535.0,90525.0,0.03740256]
[1731865453555,0.110461,90530.0,90525.0,0.14786756]
[1731865453771,0.11046,90531.0,90525.0,0.03740256]
[1731865454039,0.11046,90531.0,90526.0,0.110464]
[1731865454465,0.220916,90532.0,90525.0,0.03740256]
[1731865454707,0.110463,90528.0,90525.0,0.03740256]
[1731865454915,0.0467,90534.0,90525.0,0.03740256]
[1731865455141,0.110462,90529.0,90525.0,0.03740256]
[1731865455407,0.220913,90533.0,90525.0,0.03740256]
[1731865455614,0.0467,90534.0,90525.0,0.03740256]
[1731865455856,0.110465,90526.0,90525.0,0.0017122]
[1731865456088,0.005,90529.0,90525.0,0.0017122]
[1731865456314,0.110464,90527.0,90525.0,0.0017122]
[1731865456790,0.110465,90526.0,90525.0,0.0017122]
[1731865459541,0.189265,90526.0,90525.0,0.0017122]
[1731865459767,0.194265,90526.0,90525.0,0.0017122]
[1731865460244,0.30832755,90526.0,90525.0,0.0017122]
[1731865460485,0.35622755,90526.0,90525.0,0.0017122]
[1731865465298,0.35592755,90526.0,90525.0,0.0017122]
[1731865478649,0.30802755,90526.0,90525.0,0.0017122]
[1731865485314,0.31002755,90526.0,90525.0,0.0017122]
[1731865485530,0.45502755,90526.0,90525.0,0.0017122]
[1731865485951,0.57874607,90526.0,90525.0,0.0017122]
[1731865488163,0.005,90505.0,90487.0,0.1]
[1731865488400,0.005,90516.0,90511.0,0.16552546]
[1731865488607,0.005,90511.0,90510.0,0.11371852]
[1731865488786,0.115483,90511.0,90510.0,0.11371852]
[1731865489682,0.005,90511.0,90510.0,0.11371852]
[1731865491026,0.115483,90511.0,90510.0,0.11371852]
[1731865492651,0.220956,90516.0,90510.0,0.14892752]
[1731865492652,0.11548,90514.0,90510.0,0.14892752]
[1731865492869,0.110481,90513.0,90510.0,0.14892752]
[1731865493989,0.005,90511.0,90510.0,0.14892752]
[1731865494220,0.005,90514.0,90510.0,0.14892752]
[1731865494659,0.005,90511.0,90510.0,0.14892752]
[1731865495122,0.115483,90511.0,90510.0,0.14892752]
[1731865495825,0.110481,90513.0,90510.0,0.035209]
[1731865496036,0.005,90511.0,90510.0,0.035209]
[1731865496259,0.005,90511.0,90507.0,0.110488]
[1731865497379,0.005,90511.0,90508.0,0.110487]
[1731865498056,0.115481,90513.0,90508.0,0.110487]
[1731865498243,0.115481,90513.0,90506.0,0.110489]
[1731865498735,0.005,90511.0,90506.0,0.110489]
[1731865499167,0.005,90511.0,90506.0,0.110488]
[1731865499397,0.005,90511.0,90505.0,0.220982]
[1731865499626,0.005,90511.0,90507.0,0.110488]
[1731865500323,0.005,90511.0,90509.0,0.110486]
[1731865500992,0.005,90511.0,90505.0,0.220982]
[1731865501236,0.005,90511.0,90507.0,0.110487]
[1731865501448,0.110481,90513.0,90507.0,0.110487]
[1731865501700,0.005,90515.0,90503.0,0.14933494]
[1731865501937,0.005,90514.0,90510.0,0.110483]
[1731865502377,0.005,90518.0,90510.0,0.11371852]
[1731865502838,0.005,90515.0,90512.0,0.220965]
[1731865503069,0.005,90514.0,90513.0,0.11048]
[1731865503334,0.005,90518.0,90512.0,0.220965]
[1731865503789,0.005,90518.0,90512.0,0.110482]
[1731865504003,0.005,90518.0,90515.0,0.110478]
[1731865504215,0.005,90518.0,90510.0,0.11371852]
[1731865504428,0.005,90518.0,90512.0,0.220965]
[1731865504645,0.005,90518.0,90514.0,0.110479]
[1731865504878,0.110476,90517.0,90512.0,0.110481]
[1731865505126,0.220955,90517.0,90510.0,0.11371852]
[1731865505329,0.110476,90517.0,90512.0,0.110481]
[1731865506395,0.115475,90518.0,90512.0,0.110481]
[1731865506615,0.110476,90517.0,90511.0,0.110482]
[1731865506836,0.110476,90517.0,90512.0,0.110482]
[1731865507089,0.005,90518.0,90506.0,0.0456]
[1731865507307,0.005,90518.0,90507.0,0.00220945]
[1731865507519,0.17052546,90523.0,90511.0,0.11371852]
[1731865507745,0.16552546,90523.0,90522.0,0.11047]
[1731865507962,0.0008561,90526.0,90525.0,0.110466]
[1731865508624,0.0058561,90526.0,90525.0,0.110466]
[1731865508842,0.0058561,90526.0,90523.0,0.110468]
[1731865509062,0.0008561,90526.0,90524.0,0.110467]
[1731865509269,0.0058561,90526.0,90521.0,0.0022092]
[1731865509481,0.0058561,90526.0,90522.0,0.110469]
[1731865510139,0.0058561,90526.0,90521.0,0.03549379]
[1731865510326,0.0058561,90526.0,90521.0,0.14596379]
[1731865510498,0.0058561,90526.0,90521.0,0.11047]
[1731865510713,0.0058561,90526.0,90518.0,0.11371852]
[1731865511176,0.0058561,90526.0,90519.0,0.220948]
[1731865511386,0.0058561,90526.0,90520.0,0.110471]
[1731865511572,0.0058561,90526.0,90522.0,0.11047]
[1731865511782,0.0058561,90526.0,90519.0,0.110472]
[1731865512144,0.0058561,90526.0,90520.0,0.110472]
[1731865512348,0.0058561,90526.0,90519.0,0.220947]
[1731865512566,0.0058561,90526.0,90523.0,0.03]
[1731865512989,0.1163211,90526.0,90523.0,0.03]
[1731865513862,0.0058561,90526.0,90523.0,0.03]
[1731865514060,0.0058561,90526.0,90514.0,0.32009376]
[1731865514061,0.005,90518.0,90514.0,0.09913376]
[1731865514279,0.005,90513.0,90506.0,0.09913376]
[1731865514493,0.110488,90507.0,90502.0,0.09913376]
[1731865514692,0.110488,90507.0,90503.0,0.06]
[1731865515133,0.110487,90509.0,90503.0,0.06]
[1731865515371,0.110488,90508.0,90501.0,0.110495]
[1731865515790,0.110488,90508.0,90502.0,0.110494]
[1731865518802,0.220958,90515.0,90499.0,0.14897859]
[1731865518803,0.005,90510.0,90500.0,0.220993]
[1731865519022,0.005,90514.0,90512.0,0.110482]
[1731865519263,0.16552546,90513.0,90512.0,0.110482]
[1731865519485,0.005,90514.0,90512.0,0.110482]
[1731865519934,0.115475,90518.0,90512.0,0.110482]
[1731865520146,0.005,90514.0,90510.0,0.110484]
[1731865520559,0.005,90514.0,90508.0,0.220974]
[1731865520778,0.005,90525.0,90513.0,0.11371852]
[1731865520998,0.005,90525.0,90509.0,0.22318149]
[1731865520999,0.16552546,90523.0,90520.0,0.11371852]
[1731865521224,0.16552546,90523.0,90516.0,0.00220931]
[1731865521457,0.0008561,90526.0,90525.0,0.110466]
[1731865522207,0.0008561,90526.0,90520.0,0.11371852]
[1731865522208,0.005,90519.0,90511.0,0.023]
[1731865522442,0.220955,90516.0,90509.0,0.03561038]
[1731865522686,0.220955,90516.0,90507.0,0.09913376]